Cogmind - Beta 16 @@@ ROGUE MODE // 2025.12.28 @ 16:07:29 Player: PE-P51 Result: Destroyed by D-53 Grenadier with Mini Grenade Launcher Performance ------------- Evolutions (0) 0 Regions Visited (2) 400 Robots Destroyed (21) 105 Value Destroyed (318) 318 Prototype IDs (0) 0 Alien Tech Used (0) 0 Bonus (0) 0 TOTAL SCORE: 823 Bonus ------- None Cogmind --------- Core Integrity 0/250 Matter 281/300 Energy 230/250 System Corruption 0% Temperature Cool (0) Movement Treading (320) Ox2 Location -10/Mines Parts ------- > --- POWER (1) -------- Ion Engine > --- PROPULSION (2) --- Light Treads Light Treads > --- UTILITY (2) ------ Huge Storage Unit > --- WEAPON (2) ------- Assault Rifle Assault Rifle > --- INVENTORY (25) --- Deuterium Engine Light Treads Light Treads Light Treads Light Treads Aluminum Leg Aluminum Leg Aluminum Leg Flight Unit Cesium-ion Thruster Heat Sink Medium Matter Pod (100) Improved Terrain Scan Processor Improved Trap Extractor (0/6) Small Laser Particle Gun Beam Cannon Light Assault Rifle Light Assault Rifle Light Assault Rifle Light Assault Rifle Improved Datajack Hammer Peak State ------------ > --- POWER ------------ Ion Engine > --- PROPULSION ------- Light Treads Light Treads > --- UTILITY ---------- Huge Storage Unit Light Armor Plating > --- WEAPON ----------- Light Assault Rifle Light Assault Rifle > --- INVENTORY -------- Deuterium Engine Light Treads Light Treads Light Treads Light Treads Aluminum Leg Aluminum Leg Aluminum Leg Flight Unit Cesium-ion Thruster Heat Sink Medium Matter Pod Small Laser Small Laser Particle Gun Beam Cannon Assault Rifle Assault Rifle Light Assault Rifle Light Assault Rifle Light Assault Rifle Light Assault Rifle Light Assault Rifle Improved Datajack Hammer [Rating: 10] Favorites ----------- Power Ion Engine Engine Ion Engine Propulsion Light Treads Treads Light Treads Leg Aluminum Leg Utility Huge Storage Unit Device Sensor Array Storage Huge Storage Unit Protection Light Armor Plating Weapon Light Assault Rifle Ballistic Gun Light Assault Rifle Build | -11 -10 -10 ------- Run | Yrd Mat Min Slots Evolved . | . . . Power . | . . . Propulsion . | . . . Utility . | . . . Weapon . | . . . Parts Attached 13 | . 10 3 Power 1 | . 1 . Engine 1 | . 1 . Core . | . . . Reactor . | . . . Propulsion 3 | . 3 . Treads 2 | . 2 . Leg 1 | . 1 . Wheel . | . . . Hover . | . . . Flight . | . . . Utility 4 | . 4 . Device 1 | . 1 . Storage 2 | . 2 . Processor . | . . . Hackware . | . . . Protection 1 | . 1 . Artifact . | . . . Weapon 5 | . 2 3 Energy Gun . | . . . Energy Cannon . | . . . Ballistic Gun 5 | . 2 3 Ballistic Cannon . | . . . Launcher . | . . . Special Weapon . | . . . Impact Weapon . | . . . Slashing Weapon . | . . . Piercing Weapon . | . . . Special Melee Weapon . | . . . Unidentified Prototypes . | . . . Parts Lost 6 | . 3 3 Power 1 | . 1 . Propulsion . | . . . Utility 2 | . 1 1 Weapon 3 | . 1 2 Highest Loss Streak 3 | . 3 3 To Critical Strikes . | . . . Average Backups 17 | . 13 24 Power . | . . . Propulsion 6 | . 4 8 Utility 2 | . 1 3 Weapon 7 | . 6 10 Tool/Special . | . . . Unused Backups 29 | . 6 23 Power 2 | . 1 1 Propulsion 10 | . 2 8 Utility 5 | . 1 4 Weapon 11 | . 2 9 Tool/Special 1 | . . 1 Average Slot Usage (%) 96 | . 94 99 Engine 13 | . 13 14 Treads 15 | . 7 28 Leg 12 | . 20 . Device 3 | . 5 . Storage 14 | . 15 14 Protection 6 | . 2 13 Ballistic Gun 27 | . 27 27 Peak Build Rating 10 | . 9 10 Average Rating 8 | . 7 9 On Entrance 7 | 6 6 9 Avg Prop Armor Cover (%) . | . . . Naked Turns . | . . . Heaviest Build 107 | 11 107 90 Greatest Support 40 | 20 40 40 Greatest Overweight (x) 2 | . 2 2 Average Overweight (x) 1 | . 1 2 Largest Inventory Capacity 25 | . 25 25 Average Capacity 20 | . 17 25 Most Carried 25 | . 22 25 Average Carried 17 | . 13 24 Final Capacity 25 | 8 25 25 Final Carried 23 | 6 22 23 Class Distribution -------------------- 100% | Mutant Dominant Class ---------------- Mutant | -10/Materials Mutant | -10/Mines Resources | -11 -10 -10 ----------- Run | Yrd Mat Min Matter Collected 613 | 200 387 26 Remotely . | . . . Salvage Created 642 | . 593 49 Parts 50 | . 44 6 Haulers Intercepted 2 | . 2 . Recyclers Shooed 4 | . 4 . Parts Field Recycled . | . . . Retrieved Matter . | . . . Parts Self-Destructed . | . . . Prevented . | . . . Parts Restored . | . . . Kills | -11 -10 -10 ------- Run | Yrd Mat Min Combat Hostiles Destroyed 13 | . 10 3 Guns 13 | . 10 3 Classes Destroyed 8 | . 8 . Worker 1 | . 1 . Builder 1 | . 1 . Tunneler 1 | . 1 . Hauler 2 | . 2 . Recycler 2 | . 2 . Operator 1 | . 1 . Swarmer 8 | . 5 3 Grunt 5 | . 5 . Best Kill Streak 6 | . 6 3 Combat Bots Only 3 | . 3 3 Max Kills in Single Turn 2 | . 2 1 Gunslinging 1 | . 1 . Exploded . | . . . Melee . | . . . Uniques/NPCs Destroyed . | . . . Combat | -11 -10 -10 -------- Run | Yrd Mat Min Hostile Shots Fired 89 | . 61 28 Missed 27 | . 20 7 Hits 62 | . 41 21 Melee 5 | . . 5 Projectile 57 | . 41 16 AOE 10 | . . 10 Damage Taken 1074 | . 437 637 Core 250 | . 90 160 Absorbed by Shields . | . . . Core Remaining (%) 100 | 100 . . Volleys Fired 75 | . 67 8 Largest 2 | . 2 2 Hottest 40 | . 40 40 Shots Fired 150 | . 134 16 Gun 150 | . 134 16 Cannon . | . . . Launcher . | . . . Special . | . . . Kinetic 150 | . 134 16 Thermal . | . . . Explosive . | . . . Electromagnetic . | . . . Robot Hit Streak 9 | . 9 3 Robot Miss Streak 6 | . 6 3 Penetration Max . | . . . Secondary Targets 1 | . 1 . Max Gunslinging Chain 1 | . 1 . Shots Hit Robots 75 | . 67 8 Core Hits 38 | . 32 6 Critical Kills 1 | . 1 . Critical Parts Destroyed 2 | . 1 1 Critical Strikes 3 | . 2 1 Destroy 3 | . 2 1 Melee Attacks . | . . . Impact . | . . . Slashing . | . . . Piercing . | . . . Sneak Attacks . | . . . Combat Hostiles . | . . . Follow-up Attacks . | . . . Damage Inflicted 811 | . 706 105 Guns 734 | . 662 72 Cannons . | . . . Explosions . | . . . Melee . | . . . Ramming 77 | . 44 33 Kinetic 734 | . 662 72 Thermal . | . . . Explosive . | . . . Electromagnetic . | . . . Impact . | . . . Slashing . | . . . Piercing . | . . . Highest Corruption . | . . . Average Corruption . | . . . Corruption Purged . | . . . Corruption Blocked . | . . . Overload Shots . | . . . Overflow Damage . | . . . Projectiles . | . . . Explosions . | . . . Melee . | . . . Knockbacks 2 | . 2 . Impact 2 | . 2 . Kinetic . | . . . Secondary . | . . . Self-Inflicted Damage . | . . . Shots . | . . . Rammed 10 | . 4 6 Targets Rammed 12 | . 6 6 Kicked 2 | . 2 . Crushed . | . . . Highest Temperature 12 | . 12 12 Average Temperature 6 | . 6 5 Received Heat Transfer 194 | . 174 20 Siege Activations . | . . . Martial Activations . | . . . Shielding Activations . | . . . Robots Disrupted . | . . . Combat Hostiles . | . . . Robots Corrupted . | . . . Combat Hostiles . | . . . Parts Fried . | . . . Impact Corruptions . | . . . Robots Melted . | . . . Combat Hostiles . | . . . Parts Melted . | . . . Heat Transferred . | . . . Parts Sabotaged . | . . . Parts Stolen . | . . . Parts Stripped . | . . . Power Chain Reactions . | . . . Alert | -11 -10 -10 ------- Run | Yrd Mat Min Maximum Alert Level . | . . . Low Security (%) 100 | . 100 100 Level 1 . | . . . Level 2 . | . . . Level 3 . | . . . Level 4 . | . . . Level 5 . | . . . High Security . | . . . Max Security . | . . . Peak Influence 110 | . 110 81 Initial 1 | . . 1 Average 13 | . 19 3 Influence Increases 465 | . 384 81 Destroy 0b10 Robot/C 260 | . 200 60 Destroy 0b10 Robot/NC 40 | . 40 . Destroy Leader 74 | . 64 10 Allied During Kill 11 | . . 11 Successful Hack 19 | . 19 . Disable Machine 15 | . 15 . Destroy Structure 1 | . 1 . Lose Combat Pursuer 45 | . 45 . Influence Decreases 465 | . 379 86 Entered New Map 4 | . . 4 Time Decay 368 | . 349 19 Lost Part 33 | . 30 3 Lost Ally 60 | . . 60 Squads Dispatched 3 | . 3 . Investigation 1 | . 1 . Extermination . | . . . Reinforcement 2 | . 2 . Assault . | . . . Garrison . | . . . Intercept . | . . . Searches Triggered . | . . . Construction Impeded . | . . . Haulers Reinforced . | . . . Active Scanning Responses . | . . . Cargo Convoy Interrupts . | . . . Stealth | -11 -10 -10 --------- Run | Yrd Mat Min Distress Signals 5 | . 4 1 Communications Jammed . | . . . Distress Signals . | . . . Times Spotted 54 | . 28 26 Peak Tracking Total 14 | . 4 14 Tactical Retreats 4 | . 3 1 Traps | -11 -10 -10 ------- Run | Yrd Mat Min Traps Triggered 3 | . 2 1 Indirectly . | . . . Trap Hack Attempts . | . . . Triggered . | . . . Disarmed . | . . . Reprogrammed . | . . . Reused . | . . . Traps Extracted . | . . . Installed . | . . . Triggered . | . . . Machines | -11 -10 -10 ---------- Run | Yrd Mat Min Machines Disabled 1 | . 1 . Max in Single Turn 1 | . 1 . Machines Repaired . | . . . Machines Dismantled . | . . . Machines Sabotaged . | . . . Overloaded Fab Kills . | . . . Hacking | -11 -10 -10 --------- Run | Yrd Mat Min Machines Accessed 6 | . 5 1 Terminals 5 | . 5 . Fabricators . | . . . Repair Stations . | . . . Recycling Units . | . . . Scanalyzers . | . . . Garrison Access . | . . . Total Hacks 13 | . 12 1 Successful 6 | . 5 1 Failed 7 | . 7 . Catastrophic 1 | . 1 . Database Lockouts . | . . . Manual 9 | . 9 . Terminals 12 | . 12 . Fabricators . | . . . Repair Stations . | . . . Recycling Units . | . . . Scanalyzers . | . . . Garrison Access . | . . . Terminal Hacks 3 | . 2 1 Part Schematic 2 | . 2 . Open Door 1 | . . 1 Fabricator Hacks . | . . . Repair Station Hacks . | . . . Recycling Unit Hacks . | . . . Scanalyzer . | . . . Garrison Access Hacks . | . . . Unauthorized Hacks 3 | . 3 . Terminals 3 | . 3 . Botnet 1 | . 1 . Operators 2 | . 2 . Fabricators . | . . . Repair Stations . | . . . Recycling Units . | . . . Scanalyzers . | . . . Garrison Access . | . . . Data Cores Recovered . | . . . Used . | . . . Hacking Detections 5 | . 5 . Full Trace Events . | . . . Feedback Events . | . . . Feedback Blocked . | . . . Robot Schematics Acquired . | . . . Robots Built . | . . . Authchips . | . . . Time . | . . . Total Robot Build Rating . | . . . Part Schematics Acquired 1 | . 1 . Parts Built . | . . . Authchips . | . . . Time . | . . . Total Part Build Rating . | . . . Part Studies Acquired . | . . . Parts Repaired . | . . . Time . | . . . Parts Recycled . | . . . Recycled Matter . | . . . Retrieved Matter . | . . . Retrieved Components . | . . . Parts Scanalyzed . | . . . Part Schematics Acquired . | . . . Parts Damaged . | . . . Bothacking | -11 -10 -10 ------------ Run | Yrd Mat Min Used RIF Installer . | . . . Robots Hacked . | . . . Non-combat . | . . . Combat . | . . . Robot Hacks Applied . | . . . Relay Couplers Released . | . . . Fabnet Peak Effective % . | . . . Robots Rewired . | . . . Allies Hacked . | . . . Hacks Repelled . | . . . Allies | -11 -10 -10 -------- Run | Yrd Mat Min Total Allies 3 | . . 3 Largest Group 3 | . . 3 Highest-Rated Group 40 | . . 40 Highest-Rated Ally 16 | . . 16 Total Orders . | . . . Ally Attacks 8 | . . 8 Total Damage 51 | . . 51 Kills 1 | . . 1 Allies Corrupted . | . . . Allies Melted . | . . . Intel | -11 -10 -10 ------- Run | Yrd Mat Min Active Infowar (turns) 602 | . 602 . Sensors 602 | . 602 . Robot Analysis Total . | . . . Derelict Logs Recovered 1 | . . 1 Drone Launches . | . . . Drone Recoveries . | . . . Exploration | -11 -10 -10 ------------- Run | Yrd Mat Min Turns Passed 2522 | . 1624 898 Spaces Moved 902 | 1 637 264 Core . | . . . Treads 401 | . 137 264 Legs 501 | 1 500 . Wheels . | . . . Hover . | . . . Flight . | . . . Fastest Speed 120 | 120 120 320 Average Speed 247 | 120 217 320 Slowest Speed 320 | 120 320 320 Overloaded Moves . | . . . Propulsion Burnouts . | . . . Robots Hopped . | . . . Potential Cave-ins . | . . . Cave-ins Triggered . | . . . Exploration Rate (%) 40 | 2 76 43 Regions Visited 2 Branch Regions 1 Pre-discovered Areas 1 | . . 1 Known Exits Taken . | . . . Unknown Exits Taken 2 | 1 1 . Scrap Searched . | . . . Spaces Dug . | . . . Terrain Destroyed . | . . . Melee . | . . . Projectile . | . . . AOE . | . . . Terrain Rammed . | . . . Walls Destroyed . | . . . Machines Disabled . | . . . Actions | -11 -10 -10 --------- Run | Yrd Mat Min Total 1043 | . 751 292 Wait 10 | . 7 3 Move 900 | . 636 264 Hop . | . . . Pick Up 24 | . 19 5 Fast Attach 6 | . 4 2 Attach 4 | . 2 2 Detach 1 | . 1 . Swap 5 | . 5 . Drop 6 | . 4 2 Fire 75 | . 67 8 Melee . | . . . Ram . | . . . Kick 2 | . 2 . Crush 10 | . 4 6 Escape Stasis . | . . . Rewire . | . . . Trap . | . . . Miscellaneous . | . . . Route ------- -11/Scrapyard -10/Materials (discovered 4 exits: [*Mat x2] / *Min x2) -10/Mines (discovered 2 exits: [*Mat] / [*Exi]) History --------- Turn | Location | Event 1 | -11/Scrapyard | Discovered new exit (range 0) 1 | -11/Scrapyard | Entered Materials 305 | -10/Materials | Build established: Mutant 567 | -10/Materials | Discovered new exit (range 6) 633 | -10/Materials | Discovered new exit (range 8) 708 | -10/Materials | Lost 3 parts (1p1u1w) 815 | -10/Materials | Discovered new exit (range 11) 1119 | -10/Materials | Discovered new exit (range 15) 1625 | -10/Materials | Entered Mines 1636 | -10/Mines | Met a Derelict who couldn't figure out how to use a Trap Extractor 1861 | -10/Mines | Learned location of 1 exit from Materials 1951 | -10/Mines | Deemed a non-threat by the Exiles lab entrance 1951 | -10/Mines | Discovered new exit (range 5) 2076 | -10/Mines | Discovered new exit (range 16) 2102 | -10/Mines | Learned location of Storage (-8) 2274 | -10/Mines | Assisted by bots powering up and referring to "LRC-V3" 2464 | -10/Mines | Assembled infested the area 2469 | -10/Mines | Assisted by a Guerilla fighting off Assembled 2518 | -10/Mines | Core integrity fell below 50% 2522 | -10/Mines | Core integrity fell below 20% 2523 | -10/Mines | Destroyed by D-53 Grenadier with Mini Grenade Launcher Last Messages --------------- 02514_ as-94426 destroyed. 02515_ as-23223 destroyed. 02515_ as-91646 destroyed. 02515_ as-77186 destroyed. 02515_ as-51608 destroyed. 02515_ Lgt. Assault Rifle destroyed. 02515_ as-26649 destroyed. 02515_ as-31338 destroyed. 02517_ Core Extractor disabled. 02518_ as-48463 destroyed. 02518_ Lgt. Armor Plating destroyed. 02518_ as-45125 destroyed. 02518_ as-49715 destroyed. 02520_ as-29933 destroyed. 02521_ D-53 Grenadier suffers critical hit (Destroy). 02521_ Destroyed Shock Absorption System. 02522_ The unstable cave ceiling collapses. 02522_ D-53 Grenadier destroyed. 02522_ Lgt. Assault Rifle destroyed. 02522_ K-01 Serf collects debris. Map ----- +----------------------------------------------------+ | ?????????????????????????????????????????????????? | | ?????????????????????????????????????????????????? | | ?????????????????????????????????????????????????? | | ?????????????????????????????????????????????????? | | ?????????????????????????????????????????????????? | | ?????????????????????????????????????????????????? | | ?????????????????????????????????????????????????? | | ?????????????????????????????????????????????????? | | ?????????????????????????????????????????????????? | | ?????????????????????????????????????????????????? | | ?????????????????????????????????????????????????? | | ?????????????????????????????????????????????????? | | ?????????????????????????????????????????????????? | | ?????????????????????????????????????????????????? | | ?????????????????????????????????????????????????? | | ?????????????????????????????????????????????????? | | ?????????????????????????????????????????????????? | | ?????????????????????????????????????????????????? | | ????????????????????????####?????????????????????? | | ??????????????????????### #####?????????????????? | | ?????????????????????## *= ##????????????????? | | ?????????????????????# a?????????????????? | | ???????????????????### #??????????????????? | | ???????????????????# kd #??????????????????? | | ???????????????????# #??????????????????? | | ??????????????###### @ ## ##= #??????? | | ?????????????## # %= a%a%] #???????? | | ????????????## #### [ | #????????? | | ############# ##??## ##????????? | | ##????## ## ##?????????? | | #??????# #??### ##??????????? | | ###### ######?# " " ##??????##???????????? | | ??????# #?# #????????????????????? | | ??????# ### #?#######????????????????????? | | ??????# ##?# #???????####?????????????????? | | ??????##### ##?# #??????## ##????????????????? | | ??????????# ### #####??# #????????????????? | | ??????????# ## #?## #????????????????? | | ?####?????# ###### ### #????????????????? | | ## ##????# # ###### ## ##????????????????? | | ##???# ## ## ##?????????????????? | | ##??# ## % ##??????????????????? | | ## #### ## #### % #???????????????????? | | ### % ### ##??# ###########?????????? | | ??# #######?# ####???# #?????????? | | ??# ######### #??????# #?????????? | | ??## #??????# ####### #???####??? | | ??## #??????# #????# ##### #??? | | ?## ##### ######??????# #????# #??? | | ## #???# #???????????## ##????# #??? | +----------------------------------------------------+ Best States ------------- Heat Dissipation 25 Energy Generation 10 Energy Capacity 250 Matter Stores 300 Matter Capacity 300 Sight Range 16 Robot Scan Range 14 Terrain Scan Density 10 Armor Coverage 150 Evasion (%) 40 Recoil Reduction 2 Item Schematics ----------------- Med. Storage Unit | -10/Materials | Hacked Robot Schematics ------------------ None Fabricated ------------ Nothing Repaired ---------- Nothing Studied --------- None Alien Tech Used ----------------- None Achievements -------------- None Challenges ------------ None Game ------ Seed RestorationSpectralMultirail Manual? 0 Play Time 00:08:59 Cumulative 241.9 hours Start 2025.12.28 @ 15:47:43 End 2025.12.28 @ 16:07:29 Sessions 1 Manual Loads 0 Difficulty Rogue Special Mode None Game No. 325 Rogue 324 Adventurer 1 Explorer 0 Win Type - Total 2 Types 1/0/0/1/0/0/0/0/0/0 Lore% 71 Gallery% 64 Achievement% 55 Wizard Run 0 Options --------- Layout 0 ASCII 0 Keyboard 0 Movement Numpad Keybinds 0 Fullscreen 1 Font 24/Smallcaps Map View 76x50 Zoom Use 0% Tactical HUD 1 Map Filters NONE Filters NONE Steam 1 RUN: ebf05b02-a3ec-463f-8552-1b8d22913b40